fUSD/lending_fUSD_20250110
["ID","MTS","AMOUNT","RATE_DAILY","PERIOD"]
[348461870,1736538643494,-1744.59,0.0001109,2]
[348461871,1736538643504,-500.0,0.00011091,2]
[348461872,1736538643513,-500.0,0.00011091,2]
[348461873,1736538643522,-500.0,0.00011091,2]
[348461874,1736538643532,-500.0,0.00011091,2]
[348461875,1736538643541,-500.0,0.00011091,2]
[348461876,1736538643550,-500.0,0.00011091,2]
[348461877,1736538643560,-500.0,0.00011091,2]
[348461878,1736538643570,-500.0,0.00011091,2]
[348461879,1736538643579,-500.0,0.00011091,2]
[348461880,1736538643589,-718.31,0.00011091,2]
[348461881,1736538643598,-1431.64,0.00011091,2]
[348461882,1736538643608,-1371.99,0.00011091,2]
[348461883,1736538643618,-500.0,0.00011091,2]
[348461884,1736538643627,-500.0,0.00011091,2]
[348461885,1736538643637,-731.79,0.00011091,2]
[348461886,1736538643646,-1027.4,0.00011091,2]
[348461887,1736538643656,-500.0,0.00011091,2]
[348461888,1736538643665,-661.8,0.00011091,2]
[348461889,1736538643674,-795.73,0.00011091,2]
[348461890,1736538643684,-1138.48,0.00011091,2]
[348461891,1736538643693,-620.86,0.00011091,2]
[348461892,1736538643703,-500.0,0.00011091,2]
[348461893,1736538643713,-524.59,0.00011091,2]
[348461894,1736538643722,-581.97,0.00011091,2]
[348461895,1736538643732,-551.2,0.00011091,2]
[348461896,1736538643742,-1882.51,0.00011091,2]
[348461897,1736538643751,-500.0,0.00011091,2]
[348461898,1736538643761,-1322.02,0.00011091,2]
[348461899,1736538643771,-657.64,0.00011091,2]
[348461900,1736538643781,-818.79,0.00011091,2]
[348461902,1736538643983,-712.52,0.00011092,2]
[348461903,1736538643994,-851.73,0.00011092,2]
[348461904,1736538644003,-500.0,0.00011092,2]
[348461905,1736538644013,-500.0,0.00011092,2]
[348461906,1736538644022,-500.0,0.00011092,2]
[348461907,1736538644031,-1369.29,0.00011092,2]
[348461908,1736538644041,-500.0,0.00011092,2]
[348461909,1736538644051,-500.0,0.00011092,2]
[348461910,1736538644061,-1243.02,0.00011092,2]
[348461911,1736538644070,-781.57,0.00011092,2]
[348461912,1736538644085,-3152.19,0.00011092,2]
[348461913,1736538644094,-939.99,0.00011092,2]
[348461914,1736538644104,-500.0,0.00011092,2]
[348461915,1736538644115,-500.0,0.00011092,2]
[348461916,1736538644126,-500.0,0.00011092,2]
[348461917,1736538644137,-585.9,0.00011092,2]
[348461918,1736538644148,-1923.3,0.00011092,2]
[348461919,1736538644159,-1370.12,0.00011092,2]
[348461920,1736538644169,-1227.04,0.00011092,2]
[348461921,1736538644179,-1916.08,0.00011092,2]
[348461922,1736538644188,-1658.46,0.00011092,2]
[348461923,1736538644198,-500.0,0.00011092,2]
[348461924,1736538644207,-546.18,0.00011092,2]
[348461925,1736538644217,-500.0,0.00011092,2]
[348461926,1736538644227,-500.0,0.00011092,2]
[348461927,1736538644238,-500.0,0.00011092,2]
[348461928,1736538644249,-2252.76,0.00011092,2]
[348461929,1736538644259,-1172.88,0.00011092,2]
[348461930,1736538644268,-789.38,0.00011093,2]
[348461931,1736538644278,-817.86,0.00011093,2]
[348461932,1736538644288,-1079.5,0.00011093,2]
[348461933,1736538644297,-500.0,0.00011093,2]
[348461934,1736538644307,-1737.63,0.00011093,2]
[348461935,1736538644319,-1025.61,0.00011093,2]
[348461936,1736538644328,-500.0,0.00011093,2]
[348461937,1736538644338,-544.11,0.00011093,2]
[348461938,1736538644348,-1582.77,0.00011093,2]
[348461939,1736538644358,-500.0,0.00011093,2]
[348461940,1736538644367,-500.0,0.00011093,2]
[348461941,1736538644377,-500.0,0.00011093,2]
[348461942,1736538644387,-531.44,0.00011093,2]
[348461943,1736538644397,-689.98,0.00011093,2]
[348461944,1736538644406,-518.31,0.00011093,2]
[348461945,1736538644418,-500.0,0.00011093,2]
[348461946,1736538644428,-815.88,0.00011094,2]
[348461947,1736538644438,-1244.23,0.00011094,2]
[348461948,1736538644448,-529.86,0.00011094,2]
[348461949,1736538644458,-500.0,0.00011094,2]
[348461950,1736538644467,-500.0,0.00011094,2]
[348461951,1736538644477,-500.0,0.00011094,2]
[348461952,1736538644486,-500.0,0.00011094,2]
[348461953,1736538644496,-358.851055,0.00011094,2]
[348461954,1736538644505,-500.0,0.00011094,2]
[348461955,1736538644516,-500.0,0.00011094,2]
[348461956,1736538644527,-1378.96,0.00011094,2]
[348461957,1736538644537,-500.0,0.00011094,2]
[348461958,1736538644547,-396.380051,0.00011094,2]
[348461959,1736538644558,-500.0,0.00011094,2]
[348461960,1736538644570,-500.0,0.00011094,2]
[348461961,1736538644579,-500.0,0.00011094,2]
[348461962,1736538644589,-500.0,0.00011094,2]
[348461963,1736538644598,-500.0,0.00011094,2]
[348461964,1736538644608,-500.0,0.00011094,2]
[348461965,1736538644618,-500.0,0.00011094,2]
[348461966,1736538644629,-500.0,0.00011094,2]
[348461967,1736538644639,-500.0,0.00011094,2]
[348461968,1736538644648,-500.0,0.00011094,2]
[348461969,1736538644658,-500.0,0.00011094,2]
[348461970,1736538644668,-1422.71,0.00011094,2]
[348461971,1736538644678,-500.0,0.00011094,2]
[348461972,1736538644688,-500.0,0.00011094,2]
[348461973,1736538644697,-500.0,0.00011094,2]
[348461974,1736538644707,-500.0,0.00011094,2]
[348461975,1736538644716,-500.0,0.00011094,2]
[348461976,1736538644727,-500.0,0.00011094,2]
[348461977,1736538644738,-500.0,0.00011094,2]
[348461978,1736538644749,-500.0,0.00011094,2]
[348461979,1736538644760,-568.99,0.00011094,2]
[348461980,1736538644769,-500.0,0.00011094,2]
[348461981,1736538644779,-500.0,0.00011094,2]
[348461982,1736538644788,-500.0,0.00011094,2]
[348461983,1736538644798,-500.0,0.00011094,2]
[348461984,1736538644808,-500.0,0.00011094,2]
[348461985,1736538644820,-500.0,0.00011094,2]
[348461986,1736538644830,-500.0,0.00011094,2]
[348461987,1736538644839,-500.0,0.00011094,2]
[348461988,1736538644849,-500.0,0.00011094,2]
[348461989,1736538644859,-500.0,0.00011094,2]
[348461990,1736538644868,-500.0,0.00011094,2]
[348461991,1736538644878,-500.0,0.00011094,2]
[348461992,1736538644888,-500.0,0.00011094,2]
[348461993,1736538644897,-500.0,0.00011094,2]
[348461994,1736538644908,-500.0,0.00011094,2]
[348461995,1736538644918,-500.0,0.00011094,2]
[348461996,1736538644927,-500.0,0.00011094,2]
[348461997,1736538644937,-500.0,0.00011094,2]
[348461998,1736538644947,-500.0,0.00011094,2]
[348461999,1736538644956,-541.44,0.00011094,2]
[348462000,1736538644966,-500.0,0.00011094,2]
[348462001,1736538644975,-500.0,0.00011094,2]
[348462002,1736538644985,-500.0,0.00011094,2]
[348462003,1736538644994,-500.0,0.00011094,2]
[348462004,1736538645004,-500.0,0.00011094,2]
[348462005,1736538645014,-818.14,0.00011094,2]
[348462006,1736538645026,-500.0,0.00011094,2]
[348462007,1736538645038,-500.0,0.00011094,2]
[348462008,1736538645048,-500.0,0.00011094,2]
[348462009,1736538645059,-500.0,0.00011094,2]
[348462010,1736538645069,-500.0,0.00011094,2]
[348462011,1736538645080,-500.0,0.00011094,2]
[348462012,1736538645090,-732.28,0.00011094,2]
[348462013,1736538645099,-500.0,0.00011094,2]
[348462014,1736538645110,-500.0,0.00011094,2]
[348462015,1736538645119,-500.0,0.00011094,2]
[348462016,1736538645129,-500.0,0.00011094,2]
[348462017,1736538645139,-600.83,0.00011094,2]
[348462018,1736538645149,-500.0,0.00011094,2]
[348462019,1736538645161,-500.0,0.00011094,2]
[348462020,1736538645171,-500.0,0.00011094,2]
[348462021,1736538645181,-2032.18,0.00011094,2]
[348462022,1736538645191,-500.0,0.00011095,2]
[348462023,1736538645201,-500.0,0.00011095,2]
[348462024,1736538645210,-500.0,0.00011095,2]
[348462025,1736538645220,-500.0,0.00011095,2]
[348462026,1736538645230,-500.0,0.00011095,2]
[348462027,1736538645240,-500.0,0.00011095,2]
[348462028,1736538645263,-500.0,0.00011095,2]
[348462029,1736538645273,-500.0,0.00011095,2]
[348462030,1736538645283,-507.16,0.00011095,2]
[348462031,1736538645293,-500.0,0.00011095,2]
[348462032,1736538645303,-1250.04,0.00011095,2]
[348462033,1736538645313,-1754.31,0.00011095,2]
[348462034,1736538645324,-500.0,0.00011095,2]
[348462035,1736538645334,-500.0,0.00011095,2]
[348462036,1736538645344,-500.0,0.00011095,2]
[348462037,1736538645353,-500.0,0.00011095,2]
[348462038,1736538645363,-698.78,0.00011095,2]
[348462039,1736538645373,-500.0,0.00011095,2]
[348462040,1736538645383,-500.0,0.00011095,2]
[348462041,1736538645393,-500.0,0.00011095,2]
[348462042,1736538645402,-500.0,0.00011095,2]
[348462043,1736538645412,-500.0,0.00011095,2]
[348462044,1736538645422,-212.25060072,0.00011095,2]
[348462045,1736538645432,-853.68,0.00011095,2]
[348462046,1736538645442,-500.0,0.00011095,2]
[348462047,1736538645452,-780.35,0.00011095,2]
[348462048,1736538645462,-153.92585718,0.00011099,2]
[348462049,1736538645472,-7700.0,0.000111,4]
[348462050,1736538645482,-202.66699719,0.00011135,2]
[348462051,1736538645491,-1267.0,0.0001116,2]
[348462052,1736538645501,-2015.0,0.0001116,2]
[348462053,1736538645511,-635.0,0.0001116,2]
[348462054,1736538645521,-150.0,0.0001116,2]
[348462055,1736538645531,-566.0,0.0001116,2]
[348462056,1736538645540,-1861.0,0.0001116,2]
[348462057,1736538645550,-2944.0,0.0001116,2]
[348462058,1736538645559,-915.0,0.0001116,2]
[348462059,1736538645569,-820.0,0.0001116,2]
[348462060,1736538645578,-1259.0,0.0001116,2]
[348462061,1736538645587,-537.0,0.0001116,2]
[348462062,1736538645596,-3977.0,0.0001116,2]
[348462063,1736538645605,-3896.0,0.0001116,2]
[348462064,1736538645615,-150.0,0.0001116,2]
[348462065,1736538645624,-1173.0,0.0001116,2]
[348462066,1736538645635,-151.39486047,0.00011163,2]
[348462067,1736538645645,-10300.0,0.000112,4]
[348462068,1736538645654,-202.66699719,0.00011253,2]
[348462069,1736538645665,-151.39486047,0.00011266,2]
[348462070,1736538645675,-475.02,0.000113,2]
[348462071,1736538645684,-12900.0,0.000113,4]
[348462072,1736538645694,-994.42,0.00011365,2]
[348462073,1736538645703,-500.0,0.00011365,2]
[348462074,1736538645715,-500.0,0.00011365,2]
[348462075,1736538645726,-500.0,0.00011365,2]
[348462076,1736538645736,-500.0,0.00011365,2]
[348462077,1736538645747,-500.0,0.00011365,2]
[348462078,1736538645758,-500.0,0.00011365,2]
[348462079,1736538645770,-500.0,0.00011365,2]
[348462080,1736538645780,-500.0,0.00011365,2]
[348462081,1736538645790,-718.31,0.00011365,2]
[348462082,1736538645800,-1431.64,0.00011365,2]
[348462083,1736538645809,-1371.99,0.00011365,2]
[348462084,1736538645820,-500.0,0.00011365,2]
[348462085,1736538645829,-500.0,0.00011365,2]
[348462086,1736538645839,-731.79,0.00011365,2]
[348462087,1736538645848,-1027.4,0.00011365,2]
[348462088,1736538645858,-500.0,0.00011365,2]
[348462089,1736538645868,-690.57,0.00011365,2]
[348462090,1736538645877,-661.8,0.00011365,2]
[348462091,1736538645887,-795.73,0.00011365,2]
[348462092,1736538645897,-1138.48,0.00011365,2]
[348462093,1736538645908,-524.59,0.00011365,2]
[348462094,1736538645918,-581.97,0.00011365,2]
[348462095,1736538645929,-551.2,0.00011365,2]
[348462096,1736538645941,-1882.51,0.00011365,2]
[348462097,1736538645951,-500.0,0.00011365,2]
[348462098,1736538645960,-500.0,0.00011365,2]
[348462099,1736538645970,-1322.02,0.00011365,2]
[348462100,1736538645980,-657.64,0.00011365,2]
[348462101,1736538645990,-818.79,0.00011365,2]
[348462102,1736538645999,-712.52,0.00011366,2]
[348462103,1736538646009,-851.73,0.00011366,2]
[348462104,1736538646018,-500.0,0.00011366,2]
[348462105,1736538646028,-500.0,0.00011366,2]
[348462106,1736538646037,-500.0,0.00011366,2]
[348462107,1736538646047,-1369.29,0.00011366,2]
[348462108,1736538646057,-500.0,0.00011366,2]
[348462109,1736538646067,-500.0,0.00011366,2]
[348462110,1736538646079,-1243.02,0.00011366,2]
[348462111,1736538646090,-3152.19,0.00011366,2]
[348462112,1736538646099,-781.57,0.00011366,2]
[348462113,1736538646109,-939.99,0.00011366,2]
[348462114,1736538646119,-500.0,0.00011366,2]
[348462115,1736538646129,-500.0,0.00011366,2]
[348462116,1736538646138,-500.0,0.00011366,2]
[348462117,1736538646149,-585.9,0.00011366,2]
[348462118,1736538646160,-1923.3,0.00011366,2]
[348462119,1736538646171,-1370.12,0.00011366,2]
[348462120,1736538646180,-1227.04,0.00011366,2]
[348462121,1736538646190,-1916.08,0.00011366,2]
[348462122,1736538646200,-1658.46,0.00011366,2]
[348462123,1736538646209,-340.01348515,0.00011366,2]
[348462124,1736538646219,-546.18,0.00011366,2]
[348462125,1736538646230,-500.0,0.00011366,2]
[348462126,1736538646240,-500.0,0.00011366,2]
[348462127,1736538646251,-500.0,0.00011366,2]
[348462128,1736538646261,-2252.76,0.00011366,2]
[348462129,1736538646271,-1172.88,0.00011366,2]
[348462130,1736538646280,-789.38,0.00011367,2]
[348462131,1736538646290,-817.86,0.00011367,2]
[348462132,1736538646300,-1079.5,0.00011367,2]
[348462133,1736538646310,-1737.63,0.00011367,2]
[348462134,1736538646320,-1025.61,0.00011367,2]
[348462135,1736538646330,-500.0,0.00011367,2]
[348462136,1736538646340,-544.11,0.00011367,2]
[348462137,1736538646349,-1582.77,0.00011367,2]
[348462138,1736538646359,-500.0,0.00011367,2]
[348462139,1736538646369,-500.0,0.00011367,2]
[348462140,1736538646378,-500.0,0.00011367,2]
[348462141,1736538646388,-531.44,0.00011367,2]
[348462142,1736538646399,-689.98,0.00011367,2]
[348462143,1736538646475,-518.31,0.00011367,2]
[348462144,1736538646485,-500.0,0.00011367,2]
[348462145,1736538646495,-815.88,0.00011368,2]
[348462146,1736538646504,-1244.23,0.00011368,2]
[348462147,1736538646514,-529.86,0.00011368,2]
[348462148,1736538646523,-500.0,0.00011368,2]
[348462149,1736538646533,-500.0,0.00011368,2]
[348462150,1736538646542,-500.0,0.00011368,2]
[348462151,1736538646552,-500.0,0.00011368,2]
[348462152,1736538646561,-358.851055,0.00011368,2]
[348462153,1736538646570,-500.0,0.00011368,2]
[348462154,1736538646580,-500.0,0.00011368,2]
[348462155,1736538646589,-1378.96,0.00011368,2]
[348462156,1736538646599,-500.0,0.00011368,2]
[348462157,1736538646608,-396.380051,0.00011368,2]
[348462158,1736538646618,-500.0,0.00011368,2]
[348462159,1736538646627,-500.0,0.00011368,2]
[348462160,1736538646637,-500.0,0.00011368,2]
[348462161,1736538646647,-500.0,0.00011368,2]
[348462162,1736538646656,-500.0,0.00011368,2]
[348462163,1736538646666,-500.0,0.00011368,2]
[348462164,1736538646675,-500.0,0.00011368,2]
[348462165,1736538646685,-160.8,0.00011368,2]
[348462166,1736538646695,-500.0,0.00011368,2]
[348462167,1736538646706,-500.0,0.00011368,2]
[348462168,1736538646715,-352.67,0.00011368,2]
[348462169,1736538646724,-1422.71,0.00011368,2]
[348462170,1736538646734,-500.0,0.00011368,2]
[348462171,1736538646745,-500.0,0.00011368,2]
[348462172,1736538646755,-500.0,0.00011368,2]
[348462173,1736538646764,-500.0,0.00011368,2]
[348462174,1736538646774,-500.0,0.00011368,2]
[348462175,1736538646783,-539.92798972,0.00011368,2]
[348462176,1736538646792,-500.0,0.00011368,2]
[348462177,1736538646801,-500.0,0.00011368,2]
[348462178,1736538646810,-568.99,0.00011368,2]
[348462179,1736538646820,-500.0,0.00011368,2]
[348462180,1736538646829,-500.0,0.00011368,2]
[348462181,1736538646838,-500.0,0.00011368,2]
[348462182,1736538646848,-500.0,0.00011368,2]
[348462183,1736538646858,-500.0,0.00011368,2]
[348462184,1736538646868,-500.0,0.00011368,2]
[348462185,1736538646878,-500.0,0.00011368,2]
[348462186,1736538646887,-500.0,0.00011368,2]
[348462187,1736538646897,-500.0,0.00011368,2]
[348462188,1736538646906,-500.0,0.00011368,2]
[348462189,1736538646916,-500.0,0.00011368,2]
[348462190,1736538646926,-500.0,0.00011368,2]
[348462191,1736538646936,-500.0,0.00011368,2]
[348462192,1736538646947,-470.85621501,0.00011368,2]
[348462193,1736538646957,-500.0,0.00011368,2]
[348462194,1736538646967,-500.0,0.00011368,2]
[348462195,1736538646976,-500.0,0.00011368,2]
[348462196,1736538646986,-500.0,0.00011368,2]
[348462197,1736538646996,-500.0,0.00011368,2]
[348462198,1736538647005,-500.0,0.00011368,2]
[348462199,1736538647014,-541.44,0.00011368,2]
[348462200,1736538647023,-500.0,0.00011368,2]
[348462201,1736538647032,-500.0,0.00011368,2]
[348462202,1736538647042,-500.0,0.00011368,2]
[348462203,1736538647051,-500.0,0.00011368,2]
[348462204,1736538647060,-818.14,0.00011368,2]
[348462205,1736538647069,-500.0,0.00011368,2]
[348462206,1736538647081,-500.0,0.00011368,2]
[348462207,1736538647091,-500.0,0.00011368,2]
[348462208,1736538647100,-500.0,0.00011368,2]
[348462209,1736538647109,-500.0,0.00011368,2]
[348462210,1736538647119,-732.28,0.00011368,2]
[348462211,1736538647128,-500.0,0.00011368,2]
[348462212,1736538647137,-500.0,0.00011368,2]
[348462213,1736538647147,-500.0,0.00011368,2]
[348462214,1736538647156,-500.0,0.00011368,2]
[348462215,1736538647165,-600.83,0.00011368,2]
[348462216,1736538647175,-500.0,0.00011368,2]
[348462217,1736538647184,-500.0,0.00011368,2]
[348462218,1736538647193,-500.0,0.00011368,2]
[348462219,1736538647202,-2032.18,0.00011368,2]
[348462220,1736538647211,-151.39486047,0.00011369,2]
[348462221,1736538647221,-500.0,0.00011369,2]
[348462222,1736538647231,-500.0,0.00011369,2]
[348462223,1736538647241,-500.0,0.00011369,2]
[348462224,1736538647250,-500.0,0.00011369,2]
[348462225,1736538647259,-500.0,0.00011369,2]
[348462226,1736538647269,-500.0,0.00011369,2]
[348462227,1736538647278,-500.0,0.00011369,2]
[348462228,1736538647288,-507.16,0.00011369,2]
[348462229,1736538647297,-500.0,0.00011369,2]
[348462230,1736538647308,-1250.04,0.00011369,2]
[348462231,1736538647318,-500.0,0.00011369,2]
[348462232,1736538647327,-1754.31,0.00011369,2]
[348462233,1736538647338,-500.0,0.00011369,2]
[348462234,1736538647348,-500.0,0.00011369,2]
[348462235,1736538647357,-605.41235262,0.00011369,2]
[348462236,1736538647367,-698.78,0.00011369,2]
[348462237,1736538647376,-500.0,0.00011369,2]
[348462238,1736538647386,-500.0,0.00011369,2]
[348462239,1736538647395,-500.0,0.00011369,2]
[348462240,1736538647404,-500.0,0.00011369,2]
[348462241,1736538647413,-500.0,0.00011369,2]
[348462242,1736538647423,-853.68,0.00011369,2]
[348462243,1736538647432,-500.0,0.00011369,2]
[348462244,1736538647442,-780.35,0.00011369,2]
[348462245,1736538647451,-202.66699719,0.00011371,2]
[348462246,1736538647460,-1744.59,0.00011379,2]
[348462247,1736538647470,-2500.0,0.000114,4]
[348462248,1736538647479,-151.39486047,0.00011472,2]
[348462249,1736538647488,-202.66699719,0.00011488,2]
[348462250,1736538647498,-2500.0,0.000115,4]
[348462251,1736538647507,-2751.0,0.00011507,2]
[348462252,1736538647516,-1810.43372337,0.0001154,2]
[348462253,1736538647525,-151.39486047,0.00011575,2]
[348462254,1736538647535,-500.0,0.00011589,2]
[348462255,1736538647544,-2500.0,0.000116,4]
[348462256,1736538647553,-202.66699719,0.00011606,2]
[348462257,1736538647562,-500.0,0.00011638,2]
[348462258,1736538647571,-500.0,0.00011639,2]
[348462259,1736538647580,-500.0,0.00011639,2]
[348462260,1736538647590,-500.0,0.00011639,2]
[348462261,1736538647599,-500.0,0.00011639,2]
[348462262,1736538647608,-500.0,0.00011639,2]
[348462263,1736538647618,-500.0,0.00011639,2]
[348462264,1736538647627,-500.0,0.00011639,2]
[348462265,1736538647636,-500.0,0.00011639,2]
[348462266,1736538647645,-718.31,0.00011639,2]
[348462267,1736538647656,-1431.64,0.00011639,2]
[348462268,1736538647665,-1371.99,0.00011639,2]
[348462269,1736538647674,-586.6,0.00011639,2]
[348462270,1736538647684,-500.0,0.00011639,2]
[348462271,1736538647694,-731.79,0.00011639,2]
[348462272,1736538647703,-1027.4,0.00011639,2]
[348462273,1736538647712,-500.0,0.00011639,2]
[348462274,1736538647722,-690.57,0.00011639,2]
[348462275,1736538647733,-661.8,0.00011639,2]
[348462276,1736538647744,-795.73,0.00011639,2]
[348462277,1736538647755,-1138.48,0.00011639,2]
[348462278,1736538647764,-524.59,0.00011639,2]
[348462279,1736538647773,-581.97,0.00011639,2]
[348462280,1736538647783,-551.2,0.00011639,2]
[348462281,1736538647792,-1882.51,0.00011639,2]
[348462282,1736538647801,-500.0,0.00011639,2]
[348462283,1736538647812,-500.0,0.00011639,2]
[348462284,1736538647823,-1322.02,0.00011639,2]
[348462285,1736538647832,-657.64,0.00011639,2]
[348462286,1736538647841,-712.52,0.0001164,2]
[348462287,1736538647851,-851.73,0.0001164,2]
[348462288,1736538647861,-500.0,0.0001164,2]
[348462289,1736538647870,-500.0,0.0001164,2]
[348462290,1736538647879,-500.0,0.0001164,2]
[348462291,1736538647889,-1369.29,0.0001164,2]
[348462292,1736538647899,-500.0,0.0001164,2]
[348462293,1736538647908,-1243.02,0.0001164,2]
[348462294,1736538647918,-3152.19,0.0001164,2]
[348462295,1736538647927,-781.57,0.0001164,2]
[348462296,1736538647937,-939.99,0.0001164,2]
[348462297,1736538647947,-500.0,0.0001164,2]
[348462298,1736538647957,-500.0,0.0001164,2]
[348462299,1736538647967,-500.0,0.0001164,2]
[348462300,1736538647976,-585.9,0.0001164,2]
[348462301,1736538647985,-1923.3,0.0001164,2]
[348462302,1736538647995,-1370.12,0.0001164,2]
[348462303,1736538648005,-1227.04,0.0001164,2]
[348462304,1736538648015,-1916.08,0.0001164,2]
[348462305,1736538648024,-1658.46,0.0001164,2]
[348462306,1736538648034,-546.18,0.0001164,2]
[348462307,1736538648044,-500.0,0.0001164,2]
[348462308,1736538648053,-500.0,0.0001164,2]
[348462309,1736538648063,-500.0,0.0001164,2]
[348462310,1736538648074,-2252.76,0.0001164,2]
[348462311,1736538648088,-1172.88,0.0001164,2]
[348462312,1736538648097,-789.38,0.00011641,2]
[348462313,1736538648108,-817.86,0.00011641,2]
[348462314,1736538648119,-1079.5,0.00011641,2]
[348462315,1736538648128,-1737.63,0.00011641,2]
[348462316,1736538648138,-1025.61,0.00011641,2]
[348462317,1736538648148,-500.0,0.00011641,2]
[348462318,1736538648159,-544.11,0.00011641,2]
[348462319,1736538648169,-1582.77,0.00011641,2]
[348462320,1736538648179,-500.0,0.00011641,2]
[348462321,1736538648188,-500.0,0.00011641,2]
[348462322,1736538648198,-500.0,0.00011641,2]
[348462323,1736538648208,-531.44,0.00011641,2]
[348462324,1736538648217,-689.98,0.00011641,2]
[348462325,1736538648229,-518.31,0.00011641,2]
[348462326,1736538648240,-500.0,0.00011641,2]
[348462327,1736538648251,-815.88,0.00011642,2]
[348462328,1736538648260,-1244.23,0.00011642,2]
[348462329,1736538648270,-529.86,0.00011642,2]
[348462330,1736538648280,-500.0,0.00011642,2]
[348462331,1736538648289,-500.0,0.00011642,2]
[348462332,1736538648298,-500.0,0.00011642,2]
[348462333,1736538648308,-500.0,0.00011642,2]
[348462334,1736538648318,-358.851055,0.00011642,2]
[348462335,1736538648328,-500.0,0.00011642,2]
[348462336,1736538648338,-1378.96,0.00011642,2]
[348462337,1736538648347,-500.0,0.00011642,2]
[348462338,1736538648358,-500.0,0.00011642,2]
[348462339,1736538648368,-396.380051,0.00011642,2]
[348462340,1736538648378,-500.0,0.00011642,2]
[348462341,1736538648388,-500.0,0.00011642,2]
[348462342,1736538648397,-500.0,0.00011642,2]
[348462343,1736538648406,-374.2406541,0.00011642,2]
[348462344,1736538648416,-500.0,0.00011642,2]
[348462345,1736538648425,-500.0,0.00011642,2]
[348462346,1736538648435,-500.0,0.00011642,2]
[348462347,1736538648445,-500.0,0.00011642,2]
[348462348,1736538648454,-500.0,0.00011642,2]
[348462349,1736538648464,-1422.71,0.00011642,2]
[348462350,1736538648473,-500.0,0.00011642,2]
[348462351,1736538648483,-500.0,0.00011642,2]
[348462352,1736538648493,-500.0,0.00011642,2]
[348462353,1736538648502,-500.0,0.00011642,2]
[348462354,1736538648512,-500.0,0.00011642,2]
[348462355,1736538648522,-500.0,0.00011642,2]
[348462356,1736538648531,-500.0,0.00011642,2]
[348462357,1736538648541,-568.99,0.00011642,2]
[348462358,1736538648551,-500.0,0.00011642,2]
[348462359,1736538648561,-500.0,0.00011642,2]
[348462360,1736538648571,-500.0,0.00011642,2]
[348462361,1736538648580,-500.0,0.00011642,2]
[348462362,1736538648590,-500.0,0.00011642,2]
[348462363,1736538648599,-500.0,0.00011642,2]
[348462364,1736538648609,-500.0,0.00011642,2]
[348462365,1736538648618,-500.0,0.00011642,2]
[348462366,1736538648628,-500.0,0.00011642,2]
[348462367,1736538648638,-500.0,0.00011642,2]
[348462368,1736538648648,-500.0,0.00011642,2]
[348462369,1736538648658,-500.0,0.00011642,2]
[348462370,1736538648668,-500.0,0.00011642,2]